bitfinex-derivatives/quotes_SOLF0:USTF0_20250131
["timestamp","ask_amount","ask_price","bid_price","bid_amount"]
[1738350473351,0.03194774,231.13,231.01,0.3313]
[1738350473352,0.03194774,231.13,231.04,19.41893362]
[1738350475554,4.35954774,231.13,231.04,23.74803362]
[1738350475751,0.03194774,231.13,231.04,19.41893362]
[1738350476050,0.03194774,231.13,230.95,54.32683929]
[1738350476051,0.03194774,231.13,231.0,19.41893362]
[1738350476350,19.41893362,231.17,231.0,23.74883362]
[1738350476549,0.02813626,231.09,231.0,19.41893362]
[1738350477054,4.3287,231.07,231.0,19.41893362]
[1738350477259,0.02813626,231.09,231.0,19.41893362]
[1738350477553,4.3287,231.07,231.0,19.41893362]
[1738350478555,0.02813626,231.09,231.0,23.74893362]
[1738350478755,0.02813626,231.09,231.0,19.41893362]
[1738350479454,0.02813626,231.09,230.96,19.41893362]
[1738350479651,2.7411,231.16,230.97,4.3306]
[1738350479851,0.03294749,231.05,230.97,4.3306]
[1738350480055,0.03294749,231.05,230.98,4.3303]
[1738350480252,0.03294749,231.05,230.96,19.41893362]
[1738350480453,0.03294749,231.05,230.95,54.32683929]
[1738350480654,0.03294749,231.05,230.92,19.41893362]
[1738350480955,0.03294749,231.05,230.96,19.41893362]
[1738350481153,4.3287,231.07,230.96,19.41893362]
[1738350481355,0.02940575,231.03,230.99,4.3302]
[1738350481855,0.02940575,231.03,230.96,19.41893362]
[1738350482759,0.02940575,231.03,230.92,19.41893362]
[1738350482954,4.3296,231.03,230.94,4.3311]
[1738350483156,0.02913925,231.0,230.96,19.41893362]
[1738350483357,0.02913925,231.0,230.88,24.57158689]
[1738350483358,0.02913925,231.0,230.92,19.41893362]
[1738350483557,0.02913925,231.0,230.96,19.41893362]
[1738350483754,1.4027,231.08,230.96,19.41893362]
[1738350483958,4.3289,231.07,231.0,19.41893362]
[1738350484161,1.4027,231.08,231.0,19.41893362]
[1738350484657,1.4027,231.08,230.96,19.41893362]
[1738350484858,0.02860216,231.01,230.96,19.44807288]
[1738350485856,0.02860216,231.01,230.96,23.77877288]
[1738350486161,0.02860216,231.01,230.96,19.44807288]
[1738350486564,0.02860216,231.01,231.0,19.41893362]
[1738350486859,4.2148,231.16,231.0,19.41893362]
[1738350487055,4.3282,231.1,231.01,4.3298]
[1738350487365,4.2148,231.16,231.01,4.3298]
[1738350487558,4.2148,231.16,231.0,19.41893362]
[1738350487762,4.3285,231.09,231.06,0.03267506]
[1738350487963,0.02737695,231.1,231.06,0.03267506]
[1738350488353,4.3287,231.08,231.06,0.03267506]
[1738350488851,0.02737695,231.1,231.06,0.03267506]
[1738350489254,19.41893362,231.28,231.08,19.41893362]
[1738350489459,1.3477,231.23,231.08,19.41893362]
[1738350490359,0.03237431,231.18,231.13,0.032598]
[1738350490761,0.03237431,231.18,231.0,23.74883362]
[1738350491059,2.8591,231.19,231.0,4.3299]
[1738350491060,19.41893362,231.16,231.0,4.3299]
[1738350491265,4.3289,231.06,230.99,4.3302]
[1738350491465,4.3289,231.06,230.96,19.41893362]
[1738350491964,0.02750667,231.03,230.99,0.03222171]
[1738350492458,0.02950814,231.03,230.99,0.02863853]
[1738350492959,4.35900814,231.03,230.99,0.02863853]
[1738350493167,0.02950814,231.03,230.99,0.02863853]
[1738350493771,4.3299,231.01,230.99,0.02863853]
[1738350494066,0.02950814,231.03,230.99,0.02863853]
[1738350494362,4.33,231.0,230.99,0.02863853]
[1738350494568,0.02950814,231.03,230.88,5.15265327]
[1738350494861,1.3634,231.1,230.8,19.41893362]
[1738350494862,19.41893362,231.0,230.8,19.41893362]
[1738350495163,2.8729,230.99,230.8,19.41893362]
[1738350495564,19.41893362,230.96,230.82,148.91107513]
[1738350495773,0.02918171,230.93,230.89,0.02388184]
[1738350496067,0.02918171,230.93,230.82,148.91107513]
[1738350496665,4.3319,230.9,230.82,148.91107513]
[1738350496860,0.02918171,230.93,230.82,148.91107513]
[1738350497066,0.02918171,230.93,230.76,19.41893362]
[1738350497263,4.333,230.84,230.77,4.3343]
[1738350497569,4.333,230.84,230.76,19.41893362]
[1738350498070,0.02882683,230.82,230.78,4.3341]
[1738350498264,3.1,230.94,230.76,19.41893362]
[1738350498570,0.03118891,230.82,230.77,4.3343]
[1738350498770,3.1,230.94,230.72,138.54779373]
[1738350498771,19.41893362,230.92,230.72,138.54779373]
[1738350498970,0.03150133,230.82,230.72,119.12886011]
[1738350500170,0.03150133,230.82,230.72,19.41893362]
[1738350500367,0.03150133,230.82,230.76,4.3345]
[1738350500672,0.03150133,230.82,230.72,19.41893362]
[1738350500974,0.03150133,230.82,230.76,4.3345]
[1738350501270,0.03150133,230.82,230.72,19.41893362]
[1738350501471,0.03150133,230.82,230.73,4.335]
[1738350501673,0.03150133,230.82,230.72,19.41893362]
[1738350502874,0.03150133,230.82,230.76,19.41893362]
[1738350503370,4.3332,230.84,230.76,19.41893362]
[1738350503562,0.02735625,230.81,230.76,19.41893362]
[1738350504569,4.36095625,230.81,230.76,19.41893362]
[1738350504769,4.36095625,230.81,230.72,19.41893362]
[1738350504970,0.02735625,230.81,230.72,19.41893362]
[1738350505875,0.02735625,230.81,230.73,4.3351]
[1738350506073,0.02735625,230.81,230.66,0.3288]
[1738350506074,0.02735625,230.81,230.76,19.41893362]
[1738350506474,2.8538,230.92,230.76,19.41893362]
[1738350506674,0.02943396,230.81,230.77,4.3342]
[1738350506976,2.8538,230.92,230.76,19.41893362]
[1738350507172,0.03010523,230.81,230.8,4.3337]
[1738350507473,2.8538,230.92,230.8,19.41893362]
[1738350507674,0.02964316,230.83,230.8,19.41893362]
[1738350507874,2.8538,230.92,230.8,19.41893362]
[1738350508078,0.02751456,230.84,230.8,19.41893362]
[1738350508577,2.8832,231.0,230.8,19.41893362]
[1738350508779,2.8832,231.0,230.85,19.41893362]
[1738350508977,1.4128,230.99,230.85,19.41893362]
[1738350509577,1.4128,230.99,230.85,4.3327]
[1738350509775,1.4128,230.99,230.9,0.02751456]
[1738350509776,0.03021551,230.94,230.9,0.02751456]
[1738350510674,0.03021551,230.94,230.77,19.41893362]
[1738350511078,19.41893362,230.92,230.73,19.41893362]
[1738350511285,4.3334,230.82,230.76,4.3344]
[1738350511582,19.41893362,230.92,230.73,19.41893362]
[1738350511783,4.3336,230.81,230.75,4.3346]
[1738350511978,4.3336,230.81,230.73,19.41893362]
[1738350512283,0.02754124,230.79,230.73,19.41893362]
[1738350512475,0.02754124,230.79,230.69,19.41893362]
[1738350512675,2.8305,230.87,230.69,19.41893362]
[1738350512877,0.02942738,230.76,230.69,23.75463362]
[1738350513079,0.02942738,230.76,230.69,19.41893362]
[1738350513273,0.02942738,230.76,230.73,19.41893362]
[1738350513584,19.41893362,230.96,230.73,19.41893362]
[1738350513785,1.4742,230.95,230.79,19.41893362]
[1738350513980,1.4742,230.95,230.79,23.75283362]
[1738350514476,1.4742,230.95,230.8,4.3337]
[1738350514677,0.02994862,230.89,230.85,0.02942738]
[1738350517581,4.3326,230.87,230.85,0.02942738]
[1738350517885,0.02994862,230.89,230.85,0.02942738]
[1738350518185,4.36224862,230.89,230.85,0.02942738]
[1738350518587,0.02994862,230.89,230.85,0.02942738]
[1738350519688,0.02994862,230.89,230.86,4.3325]
[1738350519883,0.02994862,230.89,230.85,0.02942738]
[1738350524289,0.02994862,230.89,230.87,19.41893362]
[1738350524590,4.3304,230.99,230.89,4.3319]
[1738350524784,1.4124,231.01,230.87,19.41893362]
[1738350524985,4.4434,231.11,230.91,19.41893362]
[1738350525285,2.8637,231.1,230.91,19.41893362]
[1738350525687,0.02962541,231.03,230.98,0.02901692]
[1738350526884,4.35912541,231.03,230.98,0.02901692]
[1738350527283,0.02962541,231.03,230.98,0.02901692]
[1738350527984,0.02962541,231.03,230.99,19.41893362]
[1738350528892,24.31313965,231.16,230.99,19.41893362]
[1738350529289,4.328,231.11,231.0,4.3298]
[1738350529992,1.396,231.19,230.99,19.41893362]
[1738350530192,0.03033986,231.08,231.03,0.03169093]
[1738350530494,19.41893362,231.16,230.97,0.3558]
[1738350530694,0.02854848,231.08,231.03,0.03284701]
[1738350531488,4.3293,231.04,231.03,0.03284701]
[1738350531694,2.8658,231.07,230.89,0.3558]
[1738350532188,2.8658,231.07,230.92,19.41893362]
[1738350532689,4.36046773,231.02,230.97,0.03153164]
[1738350533093,4.3302,231.0,230.97,0.03153164]
[1738350533390,0.03076773,231.02,230.97,0.03153164]
[1738350533587,4.3304,230.98,230.97,0.03153164]
[1738350534286,0.03076773,231.02,230.97,0.03153164]
[1738350535494,4.3303,230.99,230.97,0.03153164]
[1738350536489,0.03076773,231.02,230.97,0.03153164]
[1738350536697,4.3304,230.98,230.97,0.03153164]
[1738350537391,0.03076773,231.02,230.97,0.03153164]
[1738350537994,4.3274,231.14,231.0,19.41893362]
[1738350538186,19.41893362,231.2,231.0,19.41893362]
[1738350539191,0.02969344,231.12,231.08,0.03040317]
[1738350539495,19.41893362,231.16,231.08,0.03040317]
[1738350539793,4.3283,231.09,231.08,0.03040317]
[1738350540593,0.03159702,231.12,231.08,0.03040317]
[1738350542697,19.41893362,231.28,231.08,19.44933679]
[1738350542891,2.8279,231.29,231.17,19.41893362]
[1738350543094,25.27804079,231.41,231.21,19.41893362]
[1738350543393,8.68700717,231.41,231.25,19.41893362]
[1738350543893,0.03172823,231.35,231.33,19.41893362]
[1738350544095,5.43120717,231.41,231.33,19.41893362]
[1738350544401,5.43120717,231.41,231.38,19.41893362]
[1738350544795,5.43120717,231.41,231.34,19.41893362]
[1738350545192,0.0330799,231.4,231.35,0.03202308]
[1738350546195,0.0330799,231.4,231.2,19.41893362]
[1738350546399,4.3234,231.36,231.21,4.326]
[1738350546698,19.41893362,231.37,231.16,19.41893362]
[1738350546901,4.3244,231.31,231.16,23.74593362]
[1738350547392,1.4629,231.32,231.16,19.41893362]
[1738350547598,1.4629,231.32,231.21,0.02962153]
[1738350547599,0.02865798,231.26,231.21,0.02962153]
[1738350551501,4.3257,231.24,231.21,0.02962153]
[1738350551900,0.02865798,231.26,231.21,0.02962153]
[1738350552404,4.3258,231.23,231.21,0.02962153]
[1738350552799,0.02865798,231.26,231.08,22.51893362]
[1738350553100,0.02865798,231.26,231.12,19.41893362]
[1738350553299,2.8605,231.28,231.16,19.41893362]
[1738350553602,19.41893362,231.41,231.2,19.41893362]
[1738350553898,1.3714,231.31,231.2,19.41893362]
[1738350554094,0.02962353,231.28,231.24,0.03100421]
[1738350556302,0.02962353,231.28,231.12,19.41893362]
[1738350556699,1.3714,231.31,231.16,4.327]
[1738350557300,19.41893362,231.29,231.12,4.3276]
[1738350557502,19.41893362,231.25,231.08,19.41893362]
[1738350557700,4.3267,231.18,231.08,19.41893362]
[1738350557900,19.41893362,231.25,231.04,19.41893362]
[1738350558101,1.3412,231.17,231.0,22.51893362]
[1738350558404,4.3282,231.1,231.0,19.41893362]
[1738350558605,1.3474,231.16,230.96,19.41893362]
[1738350558903,1.3474,231.16,230.92,3.1]
[1738350558904,4.3273,231.15,231.05,4.3289]
[1738350559103,0.02993225,231.07,231.05,4.3289]
[1738350559297,0.02993225,231.07,231.03,0.02509827]
[1738350559505,4.3284,231.09,230.96,19.41893362]
[1738350559701,1.3474,231.16,231.03,0.02509827]
[1738350559907,0.03032271,231.07,231.03,0.02509827]
[1738350560205,1.3474,231.16,231.03,0.02509827]
[1738350560604,0.03132506,231.07,231.03,0.02509827]
[1738350561002,1.3474,231.16,231.03,0.02509827]
[1738350561206,4.3281,231.11,231.03,0.02509827]
[1738350561507,0.03019033,231.07,231.03,0.02509827]
[1738350561706,4.3278,231.12,231.04,4.3293]
[1738350562205,4.3278,231.12,231.03,0.02509827]
[1738350562206,0.02814895,231.07,231.03,0.02509827]
[1738350563010,1.3412,231.17,231.09,4.3283]
[1738350563199,31.56322786,231.29,231.11,31.56322786]
[1738350563403,1.3487,231.26,231.11,31.56322786]
[1738350564406,0.03150235,231.21,231.16,0.03284668]
[1738350566603,4.35770235,231.21,231.16,0.03284668]
[1738350566806,0.03150235,231.21,231.16,0.03284668]
[1738350567308,0.03150235,231.21,231.03,3.1]
[1738350567710,34.66322786,231.25,231.03,3.1]
[1738350568202,31.56322786,231.21,231.03,3.1]
[1738350568405,4.3283,231.1,231.02,31.56322786]
[1738350569006,4.3283,231.1,231.04,0.02040054]
[1738350569201,4.3279,231.12,231.04,0.02040054]
[1738350569406,0.03217931,231.08,231.04,0.02040054]
[1738350569710,0.03217931,231.08,231.02,31.56322786]
[1738350570011,0.03217931,231.08,231.04,0.02040054]
[1738350573313,4.3288,231.07,231.04,0.02040054]
[1738350573511,0.03217931,231.08,231.04,0.02040054]
[1738350574717,4.3289,231.07,231.04,0.02040054]
[1738350575615,0.03217931,231.08,231.04,0.02040054]
[1738350581618,0.03217931,231.08,231.04,4.34970054]
[1738350582213,0.03217931,231.08,231.04,0.02040054]
[1738350582820,4.329,231.06,231.04,0.02040054]
[1738350583120,0.03217931,231.08,231.04,0.02040054]
[1738350583525,4.3287,231.07,231.04,0.02040054]
[1738350583719,4.3287,231.07,230.95,85.64]
[1738350583720,0.03217931,231.08,230.95,85.64]
[1738350584021,19.42347601,231.1,230.95,85.64]
[1738350584213,1.3455,231.09,230.95,85.64]
[1738350584419,1.3455,231.09,230.98,19.42347601]
[1738350584614,1.3455,231.09,230.95,85.64]
[1738350584915,1.3455,231.09,230.9,19.42347601]
[1738350585120,4.3303,230.99,230.92,4.3314]
[1738350585317,0.03253343,231.04,230.9,19.42347601]
[1738350585516,19.42347601,231.08,230.86,138.55233612]
[1738350585718,0.02837445,230.99,230.86,19.42347601]
[1738350586320,0.02837445,230.99,230.82,19.42347601]
[1738350586521,1.36407445,230.99,230.82,19.42347601]
[1738350586724,1.3357,230.99,230.82,19.42347601]
[1738350586923,0.03220851,230.93,230.82,19.42347601]
[1738350589428,0.03220851,230.93,230.9,19.42347601]
[1738350589628,0.03220851,230.93,230.86,19.42347601]
[1738350589827,1.4756,230.98,230.82,19.42347601]
[1738350590028,0.02854862,230.92,230.86,19.42347601]
[1738350590419,0.02854862,230.92,230.91,4.3317]
[1738350590820,0.02854862,230.92,230.86,19.42347601]
[1738350591127,0.02854862,230.92,230.91,4.3317]
[1738350591327,1.4681,231.08,230.9,19.42347601]
[1738350591528,1.4681,231.08,230.99,19.42347601]
[1738350591831,1.4681,231.08,230.91,19.42347601]
[1738350592031,4.3293,231.04,230.96,4.3308]
[1738350592327,1.4681,231.08,230.91,19.42347601]
[1738350592733,0.03334038,231.02,230.98,0.02854862]
[1738350594929,0.03334038,231.02,230.83,19.42347601]
[1738350595132,19.42347601,231.01,230.83,19.42347601]
[1738350595333,4.3311,230.95,230.88,4.3323]
[1738350595535,19.42347601,231.01,230.83,19.42347601]
[1738350596033,0.03058862,230.94,230.88,4.3323]
[1738350596234,0.03058862,230.94,230.83,19.42347601]
[1738350597133,4.3317,230.92,230.84,4.3329]
[1738350598636,4.3321,230.9,230.81,7.4336]
[1738350598833,4.3321,230.9,230.81,4.3336]
[1738350599437,0.03031471,230.88,230.79,19.42347601]
[1738350599838,2.8778,230.96,230.79,19.42347601]
[1738350600134,0.02935363,230.86,230.79,19.42347601]
[1738350600834,2.8778,230.96,230.83,19.42347601]
[1738350601134,2.8778,230.96,230.77,0.1426]
[1738350601135,1.4785,231.04,230.87,19.42347601]
[1738350601334,2.9532,231.04,230.91,23.75507601]
[1738350601633,2.9532,231.04,230.91,19.42347601]
[1738350601831,2.9532,231.04,230.95,19.42347601]
[1738350602234,0.02817143,231.0,230.95,0.02776061]
[1738350602632,0.02817143,231.0,230.83,19.42347601]
[1738350602825,4.3316,230.92,230.83,4.3331]
[1738350603029,1.4596,231.0,230.79,19.42347601]
[1738350603830,4.3312,230.94,230.82,4.3334]
[1738350604035,0.02831697,230.92,230.79,19.42347601]
[1738350604437,0.02831697,230.92,230.76,85.68]
[1738350604630,1.36691697,230.92,230.76,85.68]
[1738350604836,4.3331,230.84,230.75,4.3347]
[1738350605035,0.03223508,230.86,230.75,4.3347]
[1738350605432,0.03223508,230.86,230.71,138.55233612]
[1738350605433,4.3331,230.84,230.71,19.42347601]
[1738350605631,0.03223508,230.86,230.71,19.42347601]
[1738350605839,1.3386,230.92,230.71,19.42347601]
[1738350606146,4.36486596,230.81,230.72,4.3351]
[1738350606334,0.03126596,230.81,230.71,19.42347601]
[1738350607239,0.03126596,230.81,230.67,73.80818753]
[1738350607542,4.3336,230.82,230.71,4.3355]
[1738350607733,19.45636763,230.76,230.61,148.91107513]
[1738350607939,4.1747,230.75,230.61,148.91107513]
[1738350608340,0.03161578,230.71,230.61,148.91107513]
[1738350608542,4.3361,230.68,230.61,148.91107513]
[1738350608742,4.3361,230.68,230.59,4.3377]
[1738350608942,0.03161578,230.71,230.55,119.12886011]
[1738350609241,31.68093152,230.74,230.55,119.12886011]
[1738350609242,0.03144547,230.65,230.55,119.12886011]
[1738350610733,0.03144547,230.65,230.63,4.337]
[1738350610942,0.03144547,230.65,230.62,31.68093152]
[1738350611242,0.03144547,230.65,230.55,119.12886011]
[1738350611736,0.03144547,230.65,230.58,31.68093152]
[1738350611942,0.03144547,230.65,230.62,31.68093152]
[1738350612237,3.1,230.81,230.62,31.68093152]
[1738350612437,35.93593152,230.87,230.67,31.68093152]
[1738350612644,31.68093152,230.83,230.63,31.68093152]
[1738350613546,0.0277216,230.75,230.71,0.02871752]
[1738350613942,31.70865312,230.75,230.71,0.02871752]
[1738350614146,4.3351,230.73,230.71,0.02871752]
[1738350614343,31.70865312,230.75,230.57,3.1]
[1738350614540,31.68093152,230.71,230.54,31.68093152]
[1738350615248,4.337,230.63,230.54,4.3385]
[1738350615548,31.68093152,230.71,230.5,31.68093152]
[1738350615845,0.03031955,230.61,230.54,31.68093152]
[1738350616244,0.03031955,230.61,230.57,4.3381]
[1738350616446,0.03031955,230.61,230.54,31.68093152]
[1738350616646,0.03031955,230.61,230.5,31.68093152]
[1738350616846,31.68093152,230.71,230.5,31.68093152]
[1738350617046,0.02743773,230.58,230.5,31.68093152]
[1738350617351,31.68093152,230.71,230.5,31.68093152]
[1738350617550,0.02771921,230.56,230.51,0.1454]
[1738350617749,31.68093152,230.71,230.51,0.1454]
[1738350617950,0.02816041,230.56,230.51,0.1454]
[1738350618251,2.7858,230.74,230.54,31.68093152]
[1738350618648,2.7858,230.74,230.58,31.68093152]
[1738350618844,4.3352,230.73,230.63,4.3369]
[1738350619053,2.7858,230.74,230.58,31.68093152]
[1738350619442,0.02995641,230.68,230.64,4.36624367]
[1738350619946,0.00225641,230.68,230.64,0.02954367]
[1738350620151,1.3702,230.79,230.64,0.02954367]
[1738350620356,1.3702,230.79,230.62,31.68093152]
[1738350620756,3.1,230.84,230.66,31.68093152]
[1738350621052,31.68093152,230.83,230.62,31.68093152]
[1738350621257,0.0294583,230.77,230.73,0.02807643]
[1738350621852,4.3346,230.76,230.73,0.02807643]
[1738350622051,0.0294583,230.77,230.73,0.02807643]
[1738350622857,4.3349,230.74,230.73,0.02807643]
[1738350623158,0.0294583,230.77,230.73,0.02807643]
[1738350624961,1.4079,230.94,230.73,0.02807643]
[1738350624962,3.1,230.91,230.73,0.02807643]
[1738350625161,3.1,230.91,230.73,31.70900795]
[1738350625457,31.68093152,230.84,230.66,31.68093152]
[1738350625663,31.68093152,230.84,230.64,0.1459]
[1738350625862,4.3345,230.77,230.68,4.336]
[1738350626059,31.68093152,230.8,230.68,4.336]
[1738350626258,0.03292296,230.75,230.7,0.03126242]
[1738350626461,0.03292296,230.75,230.7,31.71219394]
[1738350626759,7.1918,230.9,230.74,36.01583152]
[1738350626965,1.3873,231.0,230.82,31.68093152]
[1738350627160,4.247,231.0,230.82,31.68093152]
[1738350627356,4.3305,230.98,230.87,4.3323]
[1738350627665,4.3305,230.98,230.78,31.68093152]
[1738350627666,31.68093152,230.98,230.78,31.68093152]
[1738350627865,4.3308,230.97,230.86,4.3325]
[1738350628067,0.03302385,230.9,230.86,0.03053966]
[1738350628359,0.03302385,230.9,230.81,4.3335]
[1738350628665,0.03222864,230.9,230.86,0.03056805]
[1738350631155,0.03222864,230.9,230.87,4.3324]
[1738350631360,0.03222864,230.9,230.86,0.03056805]
[1738350633566,2.8419,231.05,230.89,19.45459717]
[1738350634064,1.3431,231.11,230.93,19.45459717]
[1738350634258,2.8868,231.1,230.93,19.45459717]
[1738350634457,2.8868,231.1,230.89,19.45459717]
[1738350634666,4.3298,231.02,230.99,0.02790929]
[1738350634967,0.02800351,231.04,230.99,0.02790929]
[1738350635664,4.33,231.0,230.99,0.02790929]
[1738350636370,0.02800351,231.04,230.99,0.02790929]
[1738350639870,4.33,231.0,230.99,0.02790929]
[1738350641765,4.3298,231.02,230.99,0.02790929]
[1738350645081,0.02778107,230.93,230.88,0.03134948]
[1738350645379,0.02778107,230.93,230.74,19.45459717]
[1738350645577,0.02778107,230.93,230.88,0.02834672]
[1738350645578,4.3316,230.92,230.88,0.02834672]
[1738350645774,19.45459717,231.0,230.78,19.45459717]
[1738350646077,4.332,230.9,230.84,0.03078752]
[1738350646280,4.332,230.9,230.82,23.78789717]
[1738350646776,0.03328884,230.92,230.85,0.02984996]
[1738350646777,4.3325,230.87,230.85,0.02984996]
[1738350647174,19.45459717,230.96,230.85,0.02984996]
[1738350647372,4.3327,230.86,230.85,0.02984996]
[1738350648474,0.03079885,230.88,230.7,73.83418447]
[1738350648875,2.8495,230.91,230.7,73.83418447]
[1738350649185,1.4,230.9,230.73,4.3351]
[1738350649484,1.4,230.9,230.7,73.83418447]
[1738350649681,4.3338,230.8,230.79,0.03094308]
[1738350650781,0.02825143,230.84,230.79,0.03094308]
[1738350651584,4.3338,230.8,230.79,0.03094308]
[1738350651879,19.4828486,230.84,230.65,0.1447]
[1738350652187,19.45459717,230.79,230.6,19.45459717]
[1738350652483,1.4074,230.78,230.6,19.45459717]
[1738350652779,1.4074,230.78,230.62,4.337]
[1738350652984,1.4074,230.78,230.6,19.45459717]
[1738350653184,0.02911679,230.72,230.68,0.02775611]
[1738350653879,0.02911679,230.72,230.56,19.45459717]
[1738350654086,19.45459717,230.71,230.52,19.45459717]
[1738350654483,19.45459717,230.75,230.56,19.45459717]
[1738350655186,0.03065,230.68,230.63,0.03259612]
[1738350655684,4.3366,230.66,230.63,0.03259612]
[1738350656080,0.03065,230.68,230.63,0.03259612]
[1738350656676,0.03065,230.68,230.64,19.45459717]
[1738350657284,0.03065,230.68,230.63,0.03259612]
[1738350658186,0.03065,230.68,230.63,4.36939612]
[1738350658386,0.03065,230.68,230.63,0.03259612]
[1738350659079,0.03065,230.68,230.64,19.45459717]
[1738350659283,0.03065,230.68,230.65,4.3366]
[1738350659478,0.03065,230.68,230.64,19.45459717]
[1738350660382,1.4086,230.82,230.64,19.45459717]
[1738350660582,19.45459717,230.87,230.64,19.45459717]
[1738350660583,4.3333,230.83,230.73,19.45459717]
[1738350661089,1.3995,230.86,230.76,4.3345]
[1738350661285,2.8428,230.92,230.73,19.45459717]
[1738350661490,4.2423,230.92,230.73,19.45459717]
[1738350661688,0.03223011,230.85,230.8,0.03160177]
[1738350662488,4.3336,230.81,230.8,0.03160177]
[1738350663090,0.03223011,230.85,230.8,0.03160177]
[1738350663291,4.3336,230.81,230.8,0.03160177]
[1738350663492,0.03223011,230.85,230.65,19.45459717]
[1738350663493,19.45459717,230.83,230.65,19.45459717]
[1738350663684,1.4555,230.8,230.65,19.45459717]
[1738350664895,4.3351,230.73,230.7,0.02795651]
[1738350665197,0.03098152,230.75,230.7,0.02795651]
[1738350665495,4.36588152,230.75,230.7,0.02795651]
[1738350666599,4.335,230.74,230.7,0.02795651]
[1738350667097,4.3355,230.71,230.7,0.02795651]
[1738350667498,0.03098152,230.75,230.7,0.02795651]
[1738350669197,22.14809717,230.87,230.7,0.02795651]
[1738350669398,1.4482,230.86,230.7,0.02795651]
[1738350669593,1.4482,230.86,230.69,19.45459717]
[1738350669901,1.4482,230.86,230.71,4.3355]
[1738350670101,1.4482,230.86,230.69,19.45459717]
[1738350670601,0.03304129,230.81,230.76,0.03198622]
[1738350670900,4.3343,230.77,230.76,0.03198622]
[1738350671693,0.03304129,230.81,230.64,4.3367]
[1738350671895,19.45459717,230.79,230.61,19.45459717]
[1738350672198,19.45459717,230.79,230.62,4.337]
[1738350672199,4.3357,230.7,230.62,4.337]
[1738350672597,19.45459717,230.79,230.61,19.45459717]
[1738350672805,19.45459717,230.79,230.64,0.03284299]
[1738350672806,4.36842878,230.68,230.64,0.03284299]
[1738350673203,19.45459717,230.79,230.6,4.3374]
[1738350673405,0.03292028,230.68,230.64,0.02983697]
[1738350673602,0.03292028,230.68,230.61,4.3373]
[1738350673809,0.03071116,230.67,230.62,0.03209237]
[1738350674003,19.45459717,230.79,230.61,4.3373]
[1738350674398,0.02900074,230.66,230.62,0.03218335]
[1738350674603,4.3362,230.68,230.66,0.02865425]
[1738350674906,19.45459717,230.79,230.59,4.3376]
[1738350674907,0.02836145,230.69,230.59,4.3376]
[1738350675205,0.02836145,230.69,230.65,0.03291663]
[1738350675606,4.3364,230.67,230.65,0.03291663]
[1738350675805,0.02836145,230.69,230.65,0.03291663]
[1738350678211,0.02836145,230.69,230.65,23.8240138]
[1738350678510,3.1,230.84,230.65,19.4875138]
[1738350678807,4.3343,230.78,230.7,19.45459717]
[1738350679008,19.45459717,230.83,230.66,19.45459717]
[1738350679206,4.3354,230.72,230.62,23.79159717]
[1738350679401,19.45459717,230.83,230.62,19.45459717]
[1738350679603,0.03035294,230.69,230.65,0.02746492]
[1738350679807,4.335,230.74,230.66,4.3364]
[1738350680110,0.02934278,230.69,230.65,0.03116795]
[1738350680308,19.45459717,230.79,230.62,19.45459717]
[1738350680507,0.03196294,230.69,230.65,0.02868831]
[1738350680809,19.45459717,230.79,230.58,19.45459717]
[1738350681007,0.0306193,230.69,230.65,0.02821051]
[1738350681201,19.45459717,230.79,230.58,19.45459717]
[1738350681407,4.36684854,230.69,230.65,0.03064996]
[1738350681608,19.45459717,230.79,230.62,19.45459717]
[1738350681810,0.02938882,230.69,230.65,0.0278956]
[1738350682007,4.3353,230.73,230.65,4.3364]
[1738350682312,0.0318622,230.69,230.66,19.45459717]
[1738350682506,4.3332,230.83,230.72,4.3353]
[1738350682702,2.8449,230.86,230.76,19.45459717]
[1738350682905,5.81973723,230.94,230.76,19.45459717]
[1738350683211,8.67833723,230.94,230.76,19.45459717]
[1738350683411,8.67833723,230.94,230.72,19.45459717]
[1738350683606,0.03097719,230.87,230.83,0.03249848]
[1738350684309,4.333,230.84,230.83,0.03249848]
[1738350684614,0.03097719,230.87,230.83,0.03249848]
[1738350686211,4.333,230.84,230.83,0.03249848]
[1738350686410,0.03097719,230.87,230.83,0.03249848]
[1738350686608,0.03097719,230.87,230.86,4.3327]
[1738350686815,4.2336,231.02,230.86,4.3327]
[1738350687204,4.2336,231.02,230.84,19.45459717]
[1738350687410,4.2336,231.02,230.88,4.3323]
[1738350687611,4.3307,230.97,230.84,19.45459717]
[1738350687908,4.2336,231.02,230.88,4.3323]
[1738350688213,0.03049795,230.93,230.84,19.45459717]
[1738350688604,0.03049795,230.93,230.86,0.03036448]